bitfinex-derivatives/quotes_ETHF0:USTF0_20251107
["timestamp","ask_amount","ask_price","bid_price","bid_amount"]
[1762553637558,0.46894,3456.2,3456.1,0.2324]
[1762553637858,0.46889,3456.5,3456.3,0.46891]
[1762553638158,8.657,3456.9,3456.0,0.1472]
[1762553638159,0.46893,3456.3,3456.1,0.46893]
[1762553639151,0.46893,3456.3,3456.2,0.46893]
[1762553639451,8.657,3456.9,3456.5,0.2324]
[1762553639755,0.46887,3456.7,3456.6,0.46888]
[1762553639959,0.46888,3456.6,3456.5,0.1358]
[1762553640255,0.69755,3456.1,3456.0,0.00320315]
[1762553640754,0.46906,3455.4,3454.5,0.1358]
[1762553640952,8.666,3455.3,3454.5,0.1358]
[1762553641157,0.2286,3455.0,3454.9,0.46911]
[1762553641352,8.666,3455.3,3454.6,0.46915]
[1762553641556,0.46911,3454.9,3454.5,0.1358]
[1762553641756,0.00333541,3454.9,3454.6,0.46914]
[1762553641955,0.00333541,3454.9,3454.5,0.13843838]
[1762553642155,8.669,3454.8,3454.6,0.46915]
[1762553642458,0.46914,3454.7,3454.6,0.2324]
[1762553642660,0.46914,3454.7,3454.5,0.13843838]
[1762553642661,0.46915,3454.6,3454.5,0.60759838]
[1762553642953,0.46914,3454.7,3454.5,0.60759838]
[1762553643154,0.46915,3454.6,3454.5,0.00263838]
[1762553643354,0.69775,3454.6,3454.5,0.00263838]
[1762553643755,0.3682,3454.5,3454.4,0.00434008]
[1762553644151,0.81775927,3454.5,3453.5,0.1358]
[1762553644347,0.46925,3453.9,3453.7,0.46927]
[1762553644560,0.46923,3454.1,3453.8,0.46926]
[1762553644749,9.14223,3454.0,3453.8,0.47224277]
[1762553645352,9.14223,3454.0,3453.8,0.00298277]
[1762553645756,0.2286,3453.9,3453.8,0.00298277]
[1762553646154,0.46937,3453.0,3452.5,0.1358]
[1762553646454,0.4694,3452.8,3451.7,0.22715902]
[1762553646657,0.0311,3453.0,3451.1,0.05040772]
[1762553646956,0.46941,3452.7,3452.3,0.46946]
[1762553647263,0.4694,3452.8,3452.5,0.46943]
[1762553647456,0.2286,3452.6,3452.5,0.46943]
[1762553647662,0.979,3452.9,3452.7,0.46941]
[1762553647860,0.979,3452.9,3452.4,0.1358]
[1762553648055,0.4694,3452.8,3452.4,0.1358]
[1762553648255,0.979,3452.9,3452.6,0.46942]
[1762553648661,1.44838,3452.9,3452.4,0.1358]
[1762553649071,0.979,3452.9,3452.4,0.1358]
[1762553649657,0.4694,3452.8,3452.3,0.47309258]
[1762553649859,0.4694,3452.8,3452.3,0.00364258]
[1762553650067,0.2286,3452.6,3452.5,0.46943]
[1762553651162,8.697,3452.6,3452.5,0.3682]
[1762553651463,0.2286,3452.4,3452.3,0.00364258]
[1762553651665,0.2306514,3452.4,3452.3,0.00364258]
[1762553654965,0.0020514,3452.4,3452.3,0.00364258]
[1762553655166,0.0020514,3452.4,3452.3,0.23604258]
[1762553655366,0.0020514,3452.4,3452.3,0.00364258]
[1762553655666,0.0020514,3452.4,3452.3,0.23604258]
[1762553655867,0.2306514,3452.4,3452.3,0.00364258]
[1762553656467,0.0020514,3452.4,3451.4,0.46958]
[1762553656766,0.46953,3451.8,3451.5,0.60537]
[1762553656973,0.46956,3451.6,3451.3,0.46959]
[1762553657269,8.425,3451.7,3450.5,0.36993241]
[1762553657270,0.2286,3450.8,3450.7,0.46967]
[1762553657468,8.729,3450.8,3450.7,0.00319319]
[1762553657667,8.9576,3450.8,3450.7,0.00319319]
[1762553657865,8.9576,3450.8,3449.5,0.1358]
[1762553657866,0.0311,3450.0,3449.5,0.46984]
[1762553658066,8.732,3449.9,3448.5,0.1358]
[1762553658669,8.732,3449.9,3448.0,0.08664252]
[1762553658670,0.2286,3448.4,3448.0,0.08664252]
[1762553658868,0.2286,3448.2,3448.0,0.5597393]
[1762553659269,8.333,3448.3,3448.0,0.0896893]
[1762553659569,0.00434649,3448.5,3448.3,0.47]
[1762553659766,8.751,3448.4,3448.3,0.47]
[1762553660162,0.00434649,3448.5,3448.3,0.7024]
[1762553660370,8.752,3448.4,3448.3,0.7024]
[1762553660863,8.772,3448.4,3448.3,0.7024]
[1762553661067,0.00434649,3448.5,3448.3,0.7024]
[1762553661269,4.09579374,3448.6,3448.4,0.2324]
[1762553661569,4.48373,3450.4,3449.4,0.1233]
[1762553661769,0.1396,3450.0,3448.8,0.1233]
[1762553661977,0.1396,3450.0,3447.0,0.1358]
[1762553662166,0.0698,3448.8,3447.0,0.1358]
[1762553662368,0.00434649,3448.7,3448.1,0.47436649]
[1762553662674,8.88634649,3448.7,3448.4,0.46999]
[1762553662867,8.88634649,3448.7,3448.5,0.46997]
[1762553663072,8.88634649,3448.7,3448.3,0.47]
[1762553663268,8.894,3448.6,3448.4,0.46998]
[1762553663471,8.894,3448.6,3448.1,0.00434649]
[1762553663671,8.894,3448.6,3448.2,0.47001]
[1762553663870,8.894,3448.6,3448.1,0.00434649]
[1762553664174,8.894,3448.6,3448.2,0.47001]
[1762553664387,0.47,3448.4,3448.1,0.00434649]
[1762553664568,0.47001,3448.3,3448.1,0.00434649]
[1762553664768,0.2286,3448.2,3448.1,0.00434649]
[1762553665071,8.893,3448.3,3448.1,0.47437649]
[1762553665571,0.3682,3448.2,3448.1,0.00434649]
[1762553667562,0.00434649,3448.7,3448.1,0.47437649]
[1762553667762,0.352,3448.2,3448.1,0.00434649]
[1762553668977,9.249,3448.2,3448.1,0.00434649]
[1762553671073,0.2482,3448.2,3448.1,0.00434649]
[1762553671265,8.896,3448.2,3448.1,0.00434649]
[1762553671583,0.00434649,3448.7,3448.1,0.00434649]
[1762553671768,0.00434649,3448.7,3448.5,0.46998]
[1762553671973,0.00253318,3449.9,3448.7,0.46995]
[1762553672175,8.898,3449.3,3448.9,0.46992]
[1762553672378,0.00253318,3449.9,3449.2,0.46988]
[1762553672577,0.46984,3449.6,3448.8,0.1389]
[1762553672773,0.46982,3449.7,3448.8,0.1389]
[1762553673072,0.00434649,3449.6,3448.8,0.1389]
[1762553673266,8.898,3449.5,3448.8,0.1389]
[1762553673479,8.898,3449.5,3448.8,0.60883]
[1762553673671,8.898,3449.5,3448.8,0.1389]
[1762553673875,9.36785,3449.5,3448.8,0.1389]
[1762553674076,0.46984,3449.5,3449.4,0.1389]
[1762553674379,9.36684,3449.5,3449.4,0.01737165]
[1762553675478,8.897,3449.5,3449.4,0.39767165]
[1762553675678,0.47001,3448.3,3448.2,0.3803]
[1762553675875,0.47,3448.4,3448.3,0.2414]
[1762553676275,0.47001,3448.3,3448.1,0.00434649]
[1762553676683,0.00434649,3449.6,3448.4,0.2414]
[1762553676879,8.649,3449.5,3448.4,0.2414]
[1762553677183,8.649,3449.5,3448.2,0.1389]
[1762553677480,0.4699,3449.1,3448.2,0.1389]
[1762553677678,0.4699,3449.1,3448.3,0.47001]
[1762553677870,0.00434649,3449.6,3449.4,0.3803]
[1762553678072,0.47418649,3449.6,3448.8,0.1389]
[1762553678278,0.47418649,3449.6,3449.0,0.46991]
[1762553678677,0.46985,3449.5,3448.8,0.60883]
[1762553678979,0.46987,3449.4,3448.8,0.60884]
[1762553679181,0.46987,3449.3,3448.8,0.60884]
[1762553679374,0.46986,3449.4,3448.8,0.1389]
[1762553679572,0.00434649,3449.6,3448.8,0.1389]
[1762553679978,0.46986,3449.4,3448.8,0.1389]
[1762553680176,0.00434649,3449.6,3448.8,0.1389]
[1762553680482,0.46986,3449.4,3448.8,0.60883]
[1762553680684,0.00434649,3449.6,3449.5,0.2414]
[1762553681379,0.47417649,3449.6,3449.5,0.2414]
[1762553681577,1.15331988,3449.6,3449.5,0.2414]
[1762553681778,0.00434649,3449.6,3449.5,0.2414]
[1762553682281,0.68415919,3449.6,3448.8,0.1389]
[1762553682483,0.1374,3449.4,3448.4,0.2306]
[1762553682676,0.46998,3448.5,3448.4,0.2306]
[1762553683172,0.46996,3448.7,3448.4,0.2306]
[1762553683378,1.15095755,3448.6,3448.4,0.2306]
[1762553683586,0.46998,3448.5,3448.4,0.2306]
[1762553683780,0.77163835,3448.9,3448.8,0.1454]
[1762553683974,0.00434649,3449.6,3448.8,0.1454]
[1762553684175,1.24245397,3449.5,3448.8,0.1454]
[1762553684384,1.24247397,3449.4,3449.0,0.46991]
[1762553684584,0.00434649,3449.6,3448.8,0.1454]
[1762553684783,1.14121859,3449.5,3449.0,0.4699]
[1762553684986,0.67136859,3449.4,3449.3,0.2306]
[1762553685182,0.67136859,3449.4,3449.3,0.70047]
[1762553685489,0.67136859,3449.4,3449.3,8.70047]
[1762553686179,0.76199181,3449.4,3449.3,8.70047]
[1762553686488,0.76199181,3449.4,3448.8,0.1454]
[1762553686688,0.76199181,3449.3,3449.2,0.2306]
[1762553687180,1.23186181,3449.3,3449.2,0.2306]
[1762553687484,0.67136859,3449.3,3449.2,0.2306]
[1762553687686,0.67136859,3449.3,3449.2,0.70048]
[1762553688082,0.67136859,3449.3,3449.2,8.70048]
[1762553688288,0.67136859,3449.3,3449.2,14.49888]
[1762553688880,0.00434649,3449.6,3449.5,0.70044]
[1762553689288,0.00434649,3449.6,3449.5,8.70044]
[1762553689487,0.00434649,3449.6,3449.5,14.49804]
[1762553689688,0.46974,3450.3,3450.0,0.1454]
[1762553689891,0.23951187,3450.6,3449.6,0.46983]
[1762553690188,0.09061187,3450.7,3450.6,0.2306]
[1762553690488,0.56029187,3450.7,3450.6,0.376]
[1762553690688,0.00213146,3450.7,3450.6,0.37913873]
[1762553691583,0.47181146,3450.7,3450.6,0.37913873]
[1762553691983,0.00213146,3450.7,3450.6,0.84882873]
[1762553693078,0.00213146,3450.7,3450.6,8.84882873]
[1762553693282,0.00434649,3451.0,3450.9,0.2306]
[1762553693495,0.00434649,3451.0,3450.9,0.70025]
[1762553693783,0.00434649,3451.0,3450.9,0.2306]
[1762553694297,0.00669907,3451.0,3450.9,0.2306]
[1762553695387,0.00669907,3451.0,3450.6,0.14853873]
[1762553695693,0.46968,3450.7,3450.6,0.37913873]
[1762553696091,0.46968,3450.7,3450.6,0.23373873]
[1762553696494,0.71898,3450.7,3450.6,0.00313873]
[1762553696691,0.46972,3450.4,3450.3,0.00434649]
[1762553696893,0.71902,3450.4,3450.3,0.00434649]
[1762553697290,0.46984,3449.5,3449.4,0.1454]
[1762553697587,0.46982,3449.7,3449.4,0.1454]
[1762553697789,0.46982,3449.7,3449.5,0.2361]
[1762553698097,0.46983,3449.6,3449.5,0.2361]
[1762553698796,0.46983,3449.6,3449.4,0.00204987]
[1762553698999,0.46983,3449.6,3449.4,0.14444987]
[1762553699192,0.46984,3449.5,3449.4,0.38054987]
[1762553700693,0.09063043,3450.3,3449.4,0.38054987]
[1762553700899,0.70018531,3450.2,3450.1,0.2361]
[1762553701195,0.70018531,3450.2,3449.4,0.14444987]
[1762553701394,0.70018531,3450.1,3449.4,0.14444987]
[1762553701591,0.70018531,3450.0,3449.4,0.14444987]
[1762553701893,0.70018531,3449.9,3449.4,0.38054987]
[1762553702096,0.70018531,3449.8,3449.7,0.70591]
[1762553703504,0.00669907,3451.0,3450.1,0.46975]
[1762553703799,0.00669907,3451.0,3449.4,0.14444987]
[1762553703800,0.00669907,3451.0,3450.6,0.46968]
[1762553704096,0.00669907,3451.0,3449.4,0.14444987]
[1762553704297,0.46969,3450.6,3450.4,0.46971]
[1762553704600,0.46969,3450.7,3450.4,0.46971]
[1762553704899,0.46965,3450.9,3450.6,0.46969]
[1762553705691,0.00669907,3451.0,3450.9,0.46965]
[1762553705891,0.00669907,3451.0,3450.9,0.68055]
[1762553706291,0.00669907,3451.0,3450.9,0.2109]
[1762553706498,0.00669907,3451.0,3450.9,0.68055]
[1762553706897,0.1489,3451.8,3450.9,8.2109]
[1762553707099,1.02454803,3453.4,3451.2,0.0685]
[1762553707301,0.46948,3452.2,3451.2,0.0685]
[1762553707602,0.61386,3452.4,3452.0,0.4695]
[1762553707800,0.1444,3452.4,3451.2,0.0685]
[1762553708001,0.00434649,3452.1,3451.5,0.00434649]
[1762553708195,0.47383649,3452.1,3451.5,0.00434649]
[1762553708396,0.00434649,3452.1,3451.6,0.46956]
[1762553708596,0.00434649,3452.1,3451.8,0.46953]
[1762553708800,0.47383649,3452.1,3451.9,0.46951]
[1762553709000,0.00434649,3452.1,3451.9,0.46951]
[1762553709199,0.00434649,3452.1,3452.0,0.2109]
[1762553709804,0.1444,3453.6,3452.1,13.7936]
[1762553710102,0.46932,3453.4,3453.0,0.46936]
[1762553710301,0.46933,3453.3,3451.9,8.913]
[1762553710608,0.46932,3453.4,3453.1,0.46935]
[1762553710806,0.47301362,3453.4,3453.1,0.46935]
[1762553711099,0.47301362,3453.4,3453.0,0.46936]
[1762553711304,0.46934,3453.2,3453.0,0.46936]
[1762553711501,0.00369362,3453.4,3453.0,0.46936]
[1762553711502,0.00369362,3453.4,3453.3,0.2109]
[1762553712798,0.00369362,3453.4,3453.3,8.2109]
[1762553713204,0.00369362,3453.4,3453.3,0.2109]
[1762553713607,0.00369362,3453.4,3453.2,0.46933]
[1762553713901,0.47301362,3453.4,3451.8,0.0712]
[1762553714207,0.00369362,3453.4,3451.8,0.0712]
[1762553714402,0.47300362,3453.4,3453.2,0.46934]
[1762553714601,0.00369362,3453.4,3453.2,0.46934]
[1762553715901,0.00369362,3453.4,3453.3,0.68023]
[1762553716210,0.00369362,3453.4,3453.3,0.2109]
[1762553716406,0.47300362,3453.4,3453.3,0.2109]
[1762553716707,0.00369362,3453.4,3453.3,0.46933]
[1762553717005,0.46935,3453.2,3451.8,0.0712]
[1762553717207,0.00369362,3453.4,3452.8,0.46939]
[1762553717412,0.00369362,3453.4,3451.7,0.461]
[1762553717413,0.46941,3452.7,3451.7,0.461]
[1762553717600,0.46941,3452.7,3452.6,0.46942]
[1762553718004,0.46942,3452.6,3452.4,0.46944]
[1762553718201,0.46941,3452.7,3452.5,0.46943]
[1762553719207,0.1444,3453.0,3452.9,0.46938]
[1762553719406,0.00369362,3453.4,3453.3,0.46933]
[1762553720202,0.00369362,3453.4,3453.3,0.68023]
[1762553723213,0.6136,3454.2,3453.0,0.0712]
[1762553723413,0.6136,3454.2,3454.0,0.46923]
[1762553723614,0.1444,3454.2,3454.1,0.46922]
[1762553723812,0.6136,3454.2,3453.0,0.0712]
[1762553724116,0.61712305,3454.2,3454.1,0.46922]
[1762553724317,0.14792305,3454.2,3453.3,0.00434649]
[1762553724515,0.46927,3453.7,3453.3,0.00434649]
[1762553724914,0.46927,3453.7,3453.6,0.46928]
[1762553725217,0.46929,3453.6,3453.3,0.00434649]
[1762553725713,0.46927,3453.7,3453.6,0.46927]
[1762553727016,0.61714305,3454.2,3454.1,0.46922]
[1762553727218,0.14792305,3454.2,3454.1,0.46922]
[1762553728013,0.2307,3453.4,3453.3,0.00434649]
[1762553728316,0.70001,3453.4,3453.3,0.00434649]
[1762553730422,0.70001,3453.4,3453.3,0.47367649]
[1762553730622,0.70001,3453.4,3453.3,0.00434649]
[1762553732017,0.70001,3453.4,3453.3,4.649e-05]
[1762553732213,1.36773268,3453.4,3453.3,4.649e-05]
[1762553733419,0.89842268,3453.4,3453.3,0.46937649]
[1762553733615,1.36773268,3453.4,3453.3,4.649e-05]
[1762553734019,1.13703268,3453.4,3453.3,4.649e-05]
[1762553735214,1.13703268,3453.4,3453.3,0.46937649]
[1762553735716,1.36773268,3453.4,3453.3,0.46937649]
[1762553737125,1.36773268,3453.4,3453.3,4.649e-05]
[1762553737126,1.13703268,3453.4,3453.3,4.649e-05]
[1762553739117,1.13703268,3453.4,3453.3,0.46937649]
[1762553739324,1.13703268,3453.4,3453.3,4.649e-05]
[1762553740122,1.36773268,3453.4,3453.3,0.46937649]
[1762553740824,0.89842268,3453.4,3453.3,0.46937649]
[1762553741122,1.36773268,3453.4,3453.3,0.46937649]
[1762553742925,0.66772268,3453.4,3453.3,0.67627649]
[1762553744622,0.66772268,3453.4,3453.3,4.649e-05]
[1762553744819,0.66772268,3453.4,3453.3,0.46937649]
[1762553745024,1.13703268,3453.4,3453.3,0.46937649]
[1762553746626,0.66772268,3453.4,3453.3,0.46937649]
[1762553748018,0.66772268,3453.4,3453.3,0.67627649]
[1762553749124,0.14792305,3454.2,3454.1,0.46922]
[1762553749429,1.5229854,3454.2,3454.1,0.46922]
[1762553750225,1.0537854,3454.2,3454.1,0.46922]
[1762553750724,0.6721854,3454.2,3454.1,0.67612]
[1762553753128,0.00352305,3454.2,3454.1,0.67612]
[1762553759730,0.1444,3454.8,3454.7,0.67233]
[1762553759933,1.02454803,3456.4,3455.0,0.46909]
[1762553759934,0.66688085,3455.1,3455.0,0.46909]
[1762553760126,0.46906,3455.3,3455.1,0.46908]
[1762553760127,0.66688085,3455.2,3455.1,0.46908]
[1762553760336,0.66688085,3455.2,3453.9,1.241]
[1762553760337,0.66692782,3455.4,3454.5,0.0715]
[1762553760525,0.1393,3456.5,3454.5,0.0715]
[1762553760526,0.66694652,3455.3,3455.2,0.67227]
[1762553760728,0.00434649,3455.6,3455.4,0.46904]
[1762553760929,0.14234009,3455.5,3455.4,0.46904]
[1762553761932,0.14234009,3455.5,3455.4,0.67224]
[1762553762532,0.00304009,3455.5,3455.4,0.67224]
[1762553763332,0.61227009,3455.5,3455.4,0.2032]
[1762553763542,0.61227009,3455.5,3455.1,0.00434649]
[1762553763543,0.71877,3455.2,3455.1,0.00434649]
[1762553763728,0.2497,3455.2,3455.1,0.47342649]
[1762553763933,0.71877,3455.2,3455.1,0.00434649]
[1762553764133,0.71877,3455.2,3455.1,0.47342649]
[1762553764528,0.71877,3455.2,3455.1,0.00434649]
[1762553767835,0.14324009,3455.5,3455.4,0.46904]
[1762553768037,0.2497,3455.2,3455.1,0.00434649]
[1762553768338,0.2497,3455.2,3455.1,0.47342649]
[1762553768936,0.86197009,3455.5,3455.4,0.46904]
[1762553769141,0.2497,3455.4,3455.3,0.46905]
[1762553769541,1.38541567,3455.4,3455.3,0.46905]
[1762553769738,0.71876,3455.3,3455.2,0.46906]
[1762553770142,0.14324009,3455.5,3455.4,0.46904]
[1762553771444,0.00304009,3455.5,3455.4,0.67224]
[1762553772740,0.14324009,3455.5,3455.4,0.2032]
[1762553772946,0.14324009,3455.5,3455.4,0.46904]
[1762553773350,0.61226009,3455.5,3455.4,0.46904]
[1762553773540,0.14324009,3455.5,3455.4,0.46904]
[1762553776644,0.14324009,3455.5,3455.4,0.67224]
[1762553780255,0.00304009,3455.5,3455.4,0.67224]
[1762553781345,0.14324009,3455.5,3455.4,0.67224]
[1762553781555,0.39294009,3455.5,3455.4,0.46904]
[1762553781852,0.14324009,3455.5,3455.4,0.67224]
[1762553783157,0.00304009,3455.5,3455.4,0.67224]
[1762553784051,0.14324009,3455.5,3455.4,0.67224]
[1762553784259,0.39294009,3455.5,3455.4,0.46904]
[1762553784449,1.0587737,3455.5,3455.4,0.46904]
[1762553785158,0.2497,3455.3,3455.2,0.46905]
[1762553785457,0.14324009,3455.5,3455.4,0.67224]
[1762553785660,1.05884948,3455.5,3455.4,0.46904]
[1762553785859,0.80914948,3455.5,3455.4,0.67224]
[1762553787057,0.2302,3455.2,3455.1,0.00434649]
[1762553787357,0.89640596,3455.2,3455.1,0.47342649]
[1762553787949,0.14324009,3455.5,3455.4,0.46904]
[1762553788161,1.50877133,3455.5,3455.4,0.46904]
[1762553789157,1.03975133,3455.5,3455.4,0.46904]
[1762553789360,1.03975133,3455.5,3455.4,0.67304]
[1762553789750,0.80955133,3455.5,3455.4,0.67304]
[1762553789954,0.80955133,3455.5,3455.4,0.46904]
[1762553789955,1.03975133,3455.5,3455.4,0.46904]
[1762553792959,0.80955133,3455.5,3455.4,0.67304]
[1762553793150,0.00304009,3455.5,3455.4,0.67304]
[1762553793358,0.37284009,3455.5,3455.4,0.46904]
[1762553793657,0.37284009,3455.5,3455.1,0.00434649]
[1762553793859,0.66684456,3455.4,3455.1,0.20834649]
[1762553794055,0.37284009,3455.5,3455.4,0.46904]
[1762553794364,1.03969275,3455.5,3455.4,0.46904]
[1762553794559,0.46905,3455.4,3455.1,0.00434649]
[1762553794861,0.89705266,3455.3,3455.2,0.46905]
[1762553795756,1.36610266,3455.3,3455.2,0.46905]
[1762553796562,0.89705266,3455.3,3455.2,0.46905]
[1762553799265,0.89705266,3455.3,3455.2,0.67305]
[1762553799465,0.66685266,3455.3,3455.2,0.67305]
[1762553807971,0.00304009,3455.5,3455.4,0.67303]
[1762553808473,0.15284009,3455.5,3455.4,0.67303]
[1762553811182,0.00434649,3455.6,3455.5,0.67302]
[1762553811386,0.00434649,3455.6,3455.5,0.74432]
[1762553811778,0.00434649,3455.6,3455.5,2.29804958]
[1762553812182,0.1402,3457.0,3456.4,0.6656]
[1762553812384,0.2308,3456.8,3456.7,0.46884]
[1762553812681,0.89671075,3456.8,3456.7,0.46884]
[1762553812884,0.66591075,3456.8,3456.7,0.66554]
[1762553813281,0.00283884,3456.8,3456.7,0.66554]
[1762553819086,0.00283884,3456.8,3456.7,0.46884]
[1762553819594,0.00283884,3456.8,3456.7,0.66544]
[1762553821196,0.1498,3457.5,3457.4,0.66256]
[1762553821387,0.3954,3457.5,3457.4,0.46876]
[1762553822290,0.2456,3457.2,3457.1,0.47313971]
[1762553823186,0.39807087,3457.5,3457.4,0.46876]
[1762553825386,0.3954,3458.5,3458.4,0.46862]
[1762553825590,0.1406,3458.0,3457.6,0.22710567]
[1762553825794,0.3862,3458.0,3457.9,0.46869]
[1762553826186,0.1406,3458.0,3457.9,0.66249]
[1762553826390,0.14268091,3458.0,3457.9,0.66584579]
[1762553826589,0.38828091,3458.0,3457.9,0.47204579]
[1762553827190,0.14268091,3458.0,3457.9,0.66584579]
[1762553827391,0.00208091,3458.0,3457.9,0.66584579]
[1762553828800,0.1498,3458.5,3458.4,0.66242]
[1762553829194,0.3862,3459.0,3458.9,0.46856]
[1762553829498,0.2456,3458.9,3458.8,0.46857]
[1762553829696,0.3862,3459.0,3458.9,0.46856]
[1762553829893,0.38939559,3459.0,3458.9,0.46856]
[1762553830691,0.14379559,3459.0,3458.9,0.66036]
[1762553831695,0.00319559,3459.0,3458.9,0.66036]
[1762553833392,0.38939559,3459.0,3458.9,0.46856]
[1762553833599,0.38939559,3459.0,3458.8,0.46857]
[1762553833801,0.2456,3458.9,3458.8,0.46857]
[1762553833995,0.2456,3458.9,3457.9,0.00335579]
[1762553834295,0.2456,3458.9,3457.9,4.49735579]
[1762553834494,0.14379559,3459.0,3458.9,0.46856]
[1762553834495,0.38939559,3459.0,3458.9,0.46856]
[1762553834700,0.38939559,3459.0,3458.9,0.66036]
[1762553834701,0.00319559,3459.0,3458.9,0.66036]
[1762553835402,0.14379559,3459.0,3458.9,0.66036]
[1762553835604,0.38939559,3459.0,3458.9,0.46856]
[1762553836292,0.38939559,3459.0,3458.2,3.109]
[1762553836601,0.14379559,3459.0,3458.2,3.109]
[1762553836795,0.1406,3458.5,3458.2,3.109]
[1762553836997,0.1406,3458.5,3457.9,0.00335579]
[1762553837196,0.1406,3458.0,3457.9,0.00335579]
[1762553837499,0.85488,3458.0,3457.9,0.00335579]
[1762553838392,1.51555487,3458.0,3457.9,0.00335579]
[1762553838597,0.71439,3457.2,3457.1,0.00433971]
[1762553839393,0.1406,3456.5,3455.5,0.059]
[1762553839699,0.46898,3455.8,3455.5,0.00357396]
[1762553839902,0.1406,3456.0,3455.5,0.00357396]
[1762553840105,0.1406,3455.5,3454.2,0.46919]
[1762553840293,0.46911,3454.9,3454.5,0.00433971]
[1762553840803,0.1406,3455.0,3454.5,0.00433971]
[1762553841197,0.1406,3455.0,3454.5,0.00742204]
[1762553841594,0.00433971,3455.2,3455.1,0.1961]
[1762553843705,0.1406,3454.8,3454.5,0.00742204]
[1762553843898,0.46913,3454.7,3454.5,0.00742204]
[1762553844208,0.2456,3454.0,3453.9,0.22924233]
[1762553844400,0.1406,3454.2,3453.9,0.22924233]
[1762553844597,0.2456,3454.0,3453.9,0.22924233]
[1762553844803,0.2456,3454.0,3452.7,8.807]
[1762553845107,0.60972,3454.8,3454.2,0.46919]
[1762553845307,0.61198151,3454.8,3454.2,0.46919]
[1762553845509,0.46914,3454.7,3454.0,0.46921]
[1762553845706,0.46914,3454.7,3453.0,0.06333971]
[1762553845707,0.46914,3454.7,3454.1,0.4692]
[1762553845903,0.14286151,3454.8,3454.2,0.46919]
[1762553846103,0.14286151,3454.8,3454.4,0.46916]
[1762553847201,0.00226151,3454.8,3454.7,0.1967]
[1762553847403,0.00433971,3455.2,3455.1,0.66577]
[1762553847805,0.1406,3456.6,3455.1,8.0]
[1762553848010,0.1406,3456.6,3454.8,0.06583971]
[1762553848305,0.1438777,3456.0,3454.8,0.06583971]
[1762553848497,0.1438777,3456.0,3455.8,0.46898]
[1762553848704,0.1438777,3456.0,3455.8,0.00348319]
[1762553849104,0.2344,3455.9,3455.8,0.47246319]
[1762553849608,0.1438777,3456.0,3455.8,0.47246319]
[1762553849809,0.6128277,3456.0,3455.8,0.00348319]
[1762553850814,0.2344,3455.9,3455.8,0.00348319]
[1762553851812,0.6128277,3456.0,3454.8,0.00433971]
[1762553851813,0.2344,3454.9,3454.8,0.00433971]
[1762553852306,0.46909,3455.0,3454.8,0.47344971]
[1762553852511,0.46909,3455.0,3454.8,0.00433971]
[1762553852712,0.46909,3455.0,3454.8,0.00713814]
[1762553852913,0.46907,3455.1,3454.9,0.4691]
[1762553853321,0.46909,3455.0,3454.8,0.00713814]
[1762553853612,0.7035,3454.9,3454.8,0.00713814]
[1762553855114,0.2344,3454.9,3454.8,0.00713814]
[1762553855509,0.46905,3455.3,3454.9,0.4691]
[1762553855812,0.2344,3454.9,3454.8,0.00713814]
[1762553856013,0.2344,3454.9,3454.8,0.47624814]
[1762553856216,0.46906,3455.3,3455.0,0.46908]
[1762553856520,0.46906,3455.2,3455.0,0.46908]
[1762553856713,0.2344,3455.1,3455.0,0.46908]
[1762553857017,0.70347,3455.1,3455.0,0.46908]
[1762553857219,0.46909,3455.0,3454.8,0.00713814]
[1762553857412,0.70349,3455.0,3454.9,0.4691]
[1762553857609,0.2344,3455.0,3454.9,0.4691]
[1762553857914,0.70346,3455.2,3455.1,0.46907]
[1762553858319,0.2344,3455.2,3455.1,0.46907]
[1762553860312,0.7035,3454.9,3454.8,0.00713814]
[1762553860717,0.3778,3454.0,3453.4,0.903]
[1762553861217,0.84702,3454.0,3453.4,0.903]
[1762553861412,0.46925,3453.8,3452.5,0.0762]
[1762553861618,0.1434,3454.0,3453.4,0.6733]
[1762553861619,0.00433971,3453.5,3453.4,0.6733]
[1762553861821,0.00706117,3453.5,3453.4,0.6733]
[1762553868019,0.15616117,3453.5,3453.4,0.4693]
[1762553868219,0.00706117,3453.5,3453.4,0.6733]
[1762553869216,0.15616117,3453.5,3453.4,0.4693]
[1762553869621,0.00706117,3453.5,3453.4,0.6733]
[1762553870421,0.00706117,3453.5,3453.4,0.204]
[1762553871624,0.00706117,3453.5,3453.4,0.6733]
[1762553873322,0.3743,3454.5,3454.4,0.46917]
[1762553873624,1.50839612,3454.5,3454.4,0.46917]
[1762553874420,1.51084596,3454.5,3454.4,0.46917]
[1762553874621,1.04169596,3454.5,3454.4,0.46917]
[1762553874921,0.81079596,3454.5,3454.4,0.46917]
[1762553875127,0.00244984,3454.5,3454.4,0.67317]
[1762553877528,0.66484539,3455.1,3455.0,0.67279]
[1762553877724,0.46901,3455.6,3454.0,0.0759]
[1762553877918,0.66490784,3455.4,3454.0,0.0759]
[1762553878226,0.66490784,3455.3,3454.0,0.0759]
[1762553878429,0.3912,3455.5,3455.4,0.46903]
[1762553878624,1.05631053,3455.5,3455.4,0.46903]
[1762553878924,1.05841613,3455.5,3455.4,0.46903]
[1762553879523,0.81631613,3455.5,3455.4,0.46903]
[1762553880228,0.1512056,3455.5,3455.4,0.67273]
[1762553880926,0.0021056,3455.5,3455.4,0.67273]
[1762553881125,0.66771359,3455.5,3455.4,0.67273]
[1762553881325,0.0021056,3455.5,3455.4,0.67273]
[1762553882130,1.02454803,3456.9,3456.3,0.46891]
[1762553882131,0.66559555,3456.4,3456.3,0.46891]
[1762553882530,0.3912,3456.5,3456.4,0.4689]
[1762553882921,0.3912,3456.5,3455.0,2.0533]
[1762553882922,0.1502,3456.0,3455.0,1.55999346]
[1762553883125,0.1502,3456.0,3455.6,0.469]
[1762553883126,0.2421,3455.7,3455.6,0.469]
[1762553883523,0.2421,3455.3,3454.3,1.55999346]
[1762553883727,0.2421,3454.8,3454.7,0.46912]
[1762553883928,0.1502,3455.0,3454.4,0.00433971]
[1762553884226,0.1502,3455.0,3454.9,0.6707]